bitfinex-derivatives/quotes_ETHF0:USTF0_20250427
["timestamp","ask_amount","ask_price","bid_price","bid_amount"]
[1745781618300,6.27116,1803.4,1803.3,4.5895]
[1745781618489,11.27116,1803.4,1803.3,3.722]
[1745781618693,1.10896,1802.9,1802.8,1.9312]
[1745781618889,4.63296,1802.9,1802.8,1.9312]
[1745781619090,3.524,1802.9,1802.8,5.6532]
[1745781619802,5.1781,1802.9,1802.8,5.6532]
[1745781620702,6.28706,1802.9,1802.8,5.6532]
[1745781622197,6.28706,1802.9,1802.8,1.9312]
[1745781622901,6.28706,1802.9,1802.8,1.109]
[1745781623103,13.3859,1802.9,1802.8,3.722]
[1745781623310,15.30196,1802.9,1802.8,3.722]
[1745781624204,1.10921,1802.5,1802.4,1.10926]
[1745781624404,3.525,1802.5,1802.4,1.10923]
[1745781624800,6.29231,1802.5,1802.4,1.10923]
[1745781625203,6.29231,1802.5,1802.4,3.722]
[1745781625600,6.29231,1802.5,1802.4,4.83127]
[1745781625800,6.29231,1802.5,1802.4,3.722]
[1745781626406,6.29231,1802.5,1802.4,4.83127]
[1745781626901,6.29231,1802.5,1802.4,3.722]
[1745781628109,1.10927,1802.4,1802.3,1.10933]
[1745781628301,3.66137,1802.4,1802.3,1.10933]
[1745781628806,2.5521,1802.4,1802.3,1.10933]
[1745781629206,2.5521,1802.4,1802.3,4.83133]
[1745781631196,2.5521,1802.4,1802.3,6.48323]
[1745781631409,3.66137,1802.4,1802.3,3.722]
[1745781631708,8.66137,1802.4,1802.3,3.722]
[1745781632099,1.10939,1802.2,1802.1,3.2078]
[1745781632309,4.63439,1802.2,1802.1,3.2078]
[1745781632697,5.0954,1802.2,1802.1,4.31726]
[1745781633601,6.20479,1802.2,1802.1,4.31726]
[1745781635108,6.20479,1802.2,1802.1,3.2078]
[1745781636406,1.10946,1802.1,1802.0,3.722]
[1745781636609,3.68356,1802.1,1802.0,3.722]
[1745781638409,3.68356,1802.1,1802.0,4.83152]
[1745781639218,3.68356,1802.1,1802.0,3.722]
[1745781639513,3.68356,1802.1,1802.0,4.83152]
[1745781640310,2.5741,1802.1,1802.0,4.83152]
[1745781640706,2.5741,1802.1,1802.0,6.53162]
[1745781641615,3.68356,1802.1,1802.0,6.53162]
[1745781644010,4.31724,1802.2,1802.1,1.10946]
[1745781644209,6.7348,1802.2,1802.1,3.63966]
[1745781645519,3.2078,1802.2,1802.1,3.63966]
[1745781645820,6.7348,1802.2,1802.1,3.63966]
[1745781646216,3.2078,1802.2,1802.1,3.63966]
[1745781646408,6.7348,1802.2,1802.1,3.63966]
[1745781647518,3.2078,1802.2,1802.1,3.63966]
[1745781647708,6.7348,1802.2,1802.1,3.63966]
[1745781647911,3.527,1802.3,1802.2,1.10939]
[1745781648215,3.527,1802.3,1802.2,3.69489]
[1745781649323,3.527,1802.3,1802.2,7.41689]
[1745781650315,1.10916,1802.6,1802.5,1.10921]
[1745781650514,3.526,1802.5,1802.4,1.10927]
[1745781650811,3.526,1802.5,1802.4,3.70587]
[1745781651222,3.526,1802.5,1802.4,7.42787]
[1745781652124,4.31684,1802.8,1802.4,7.42787]
[1745781652320,3.526,1802.6,1802.5,2.74541]
[1745781652517,3.526,1802.6,1802.5,1.10921]
[1745781653129,3.526,1802.6,1802.5,4.83121]
[1745781657924,4.63515,1802.6,1802.5,4.83121]
[1745781658124,3.526,1802.6,1802.5,4.83121]
[1745781658429,4.63515,1802.6,1802.5,4.83121]
[1745781658622,4.63515,1802.6,1802.5,3.722]
[1745781659423,5.42425,1802.6,1802.5,3.722]
[1745781659623,7.13445,1802.6,1802.5,3.722]
[1745781660027,7.13445,1802.6,1802.5,4.83121]
[1745781661327,7.13445,1802.6,1802.5,3.722]
[1745781661513,7.13445,1802.6,1802.5,4.83121]
[1745781661718,7.13445,1802.6,1802.5,3.722]
[1745781668829,7.13445,1802.6,1802.5,4.83121]
[1745781669327,7.13445,1802.6,1802.5,6.46611]
[1745781670030,7.13445,1802.6,1802.5,5.3569]
[1745781670235,7.13445,1802.6,1802.5,3.722]
[1745781671232,7.13445,1802.6,1802.5,4.83121]
[1745781672832,7.13445,1802.6,1802.5,3.722]
[1745781679241,7.13445,1802.6,1802.5,4.83121]
[1745781681446,7.13445,1802.6,1802.5,3.722]
[1745781684950,7.13445,1802.6,1802.5,4.83121]
[1745781685543,7.13445,1802.6,1802.5,6.49981]
[1745781686544,6.34535,1802.6,1802.5,6.49981]
[1745781687244,5.2362,1802.6,1802.5,6.49981]
[1745781687432,3.526,1802.6,1802.5,6.49981]
[1745781687638,4.31694,1802.7,1802.6,1.10915]
[1745781687838,7.84194,1802.7,1802.6,3.67215]
[1745781688039,9.52004,1802.7,1802.6,3.67215]
[1745781691061,6.31224,1802.7,1802.6,3.67215]
[1745781691957,7.84181,1802.9,1802.8,1.10903]
[1745781692259,6.7328,1802.9,1802.8,3.722]
[1745781692458,7.84182,1802.9,1802.8,3.722]
[1745781692659,7.84182,1802.9,1802.8,6.2396]
[1745781694663,7.84182,1802.9,1802.8,7.34863]
[1745781694866,7.84182,1802.9,1802.8,6.2396]
[1745781697869,8.69672,1802.9,1802.8,6.2396]
[1745781698768,7.84182,1802.9,1802.8,6.2396]
[1745781699166,4.63402,1802.9,1802.8,6.2396]
[1745781699571,4.63402,1802.9,1802.8,7.34863]
[1745781700065,4.63402,1802.9,1802.8,6.2396]
[1745781704869,4.63402,1802.9,1802.8,7.34863]
[1745781705072,4.63402,1802.9,1802.8,6.2396]
[1745781708779,5.44832,1802.9,1802.8,6.2396]
[1745781715381,8.65612,1802.9,1802.8,6.2396]
[1745781718685,5.44832,1802.9,1802.8,6.2396]
[1745781719184,8.65612,1802.9,1802.8,3.722]
[1745781721183,1.10903,1802.8,1802.7,0.00403284]
[1745781721381,2.84393,1802.8,1802.7,0.00403284]
[1745781722182,2.84393,1802.8,1802.7,3.72603284]
[1745781735102,3.68083,1802.8,1802.7,0.20103284]
[1745781736294,1.10921,1802.5,1802.4,5.7654]
[1745781737108,3.2078,1802.9,1802.4,14.4874]
[1745781737409,6.0737,1803.4,1802.8,3.2078]
[1745781737600,3.525,1803.4,1803.3,1.10872]
[1745781737805,20.32959891,1803.5,1803.4,1.10866]
[1745781738002,20.32959891,1803.5,1803.4,4.40646]
[1745781738203,20.32959891,1803.5,1803.4,13.12846]
[1745781738507,9.94359892,1803.5,1803.4,18.44659]
[1745781741007,2.80247,1803.9,1803.7,1.10843]
[1745781741211,2.80247,1803.9,1803.8,1.5961]
[1745781741907,2.80247,1803.9,1803.8,2.70451]
[1745781742113,2.80247,1803.9,1803.8,6.42651]
[1745781742903,2.80247,1803.9,1803.8,5.3181]
[1745781743713,2.80247,1803.9,1803.8,6.42651]
[1745781744005,2.80247,1803.9,1803.8,5.3181]
[1745781744211,1.10837,1803.9,1803.8,6.42651]
[1745781745610,1.10837,1803.9,1803.8,5.3181]
[1745781745912,3.525,1804.0,1803.8,6.42651]
[1745781746305,5.1667,1804.0,1803.8,6.42651]
[1745781748214,5.1667,1804.0,1803.9,1.10835]
[1745781748913,3.525,1804.0,1803.9,3.68465]
[1745781749111,3.525,1804.0,1803.9,8.23305]
[1745781750715,5.2065,1804.0,1803.9,8.23305]
[1745781753201,6.31479,1804.0,1803.9,7.1247]
[1745781753407,6.31479,1804.0,1803.9,4.5721]
[1745781753610,6.31479,1804.0,1803.9,3.722]
[1745781756908,6.31479,1804.0,1803.9,4.83035]
[1745781758003,6.31479,1804.0,1803.9,3.722]
[1745781758617,5.2275,1804.0,1803.9,4.83035]
[1745781758914,6.33579,1804.0,1803.9,3.722]
[1745781760004,6.33579,1804.0,1803.9,4.83035]
[1745781760210,5.2275,1804.0,1803.9,4.83035]
[1745781760516,5.2275,1804.0,1803.9,7.39375]
[1745781760717,5.2275,1804.0,1803.9,7.67085]
[1745781760917,6.33579,1804.0,1803.9,7.67085]
[1745781762609,5.2275,1804.0,1803.9,7.67085]
[1745781763118,6.33579,1804.0,1803.9,7.67085]
[1745781763319,5.2275,1804.0,1803.9,7.67085]
[1745781763514,6.33579,1804.0,1803.9,7.67085]
[1745781764615,5.2275,1804.0,1803.9,7.67085]
[1745781765416,6.33579,1804.0,1803.9,7.67085]
[1745781765620,5.2275,1804.0,1803.9,7.67085]
[1745781765820,6.33579,1804.0,1803.9,7.67085]
[1745781767620,5.2275,1804.0,1803.9,7.67085]
[1745781769327,1.6815,1804.0,1803.9,7.67085]
[1745781771219,2.78979,1804.0,1803.9,7.67085]
[1745781771422,1.6815,1804.0,1803.9,5.96765]
[1745781774522,4.4054,1804.1,1803.9,5.96765]
[1745781774727,4.4054,1804.1,1804.0,1.10829]
[1745781774928,6.0533,1804.1,1804.0,1.10829]
[1745781775115,6.0533,1804.1,1804.0,4.83029]
[1745781776827,7.16153,1804.1,1804.0,4.83029]
[1745781777434,7.16153,1804.1,1804.0,3.722]
[1745781778531,7.16153,1804.1,1804.0,4.83029]
[1745781780432,7.16153,1804.1,1804.0,3.722]
[1745781781330,7.16153,1804.1,1803.8,1.1084]
[1745781781331,1.10835,1803.9,1803.8,1.1084]
[1745781781729,1.10835,1803.9,1803.8,1.38547]
[1745781781730,1.10836,1803.9,1803.8,1.38547]
[1745781781931,1.10836,1803.9,1803.8,0.2771]
[1745781782129,1.10836,1803.9,1803.8,5.10751]
[1745781785041,1.10836,1803.9,1803.8,3.9991]
[1745781786036,1.10836,1803.9,1803.8,5.10751]
[1745781787038,1.6973,1804.0,1803.8,3.9991]
[1745781787235,1.10835,1803.9,1803.8,6.70687]
[1745781787436,1.6973,1804.0,1803.8,5.5985]
[1745781787638,2.80563,1804.0,1803.9,1.10835]
[1745781787835,2.80563,1804.0,1803.9,4.31115]
[1745781788030,1.6973,1804.0,1803.9,4.31115]
[1745781788233,6.7338,1804.2,1804.1,1.10823]
[1745781788431,4.63416,1804.2,1804.1,1.10823]
[1745781788636,3.526,1804.2,1804.1,1.10823]
[1745781789742,3.526,1804.2,1804.1,2.76713]
[1745781791531,3.526,1804.2,1804.1,5.97493]
[1745781794125,5.2273,1804.2,1804.1,5.97493]
[1745781794941,5.2273,1804.2,1804.1,2.76713]
[1745781795440,5.2273,1804.2,1804.1,5.97493]
[1745781797636,3.526,1804.2,1804.1,5.97493]
[1745781797935,3.2078,1804.5,1804.4,1.10804]
[1745781797936,6.7328,1804.5,1804.4,1.10804]
[1745781798242,6.7328,1804.5,1804.4,4.83004]
[1745781798543,5.1264,1804.5,1804.4,4.83004]
[1745781799043,5.1264,1804.5,1804.4,5.10714]
[1745781800233,5.1264,1804.5,1804.4,1.38514]
[1745781801142,5.1264,1804.5,1804.4,3.09744]
[1745781801336,3.525,1804.5,1804.4,3.09744]
[1745781801644,3.525,1804.5,1804.4,6.30524]
[1745781802138,3.525,1804.5,1804.4,10.02724]
[1745781804947,1.6925,1804.6,1804.5,1.10798]
[1745781805139,1.6925,1804.6,1804.5,1.89698]
[1745781805335,1.6925,1804.6,1804.5,4.27568]
[1745781806248,5.50024,1804.8,1804.7,1.10786]
[1745781806748,7.07424,1804.8,1804.7,1.10786]
[1745781806945,5.9664,1804.8,1804.7,1.10786]
[1745781807344,7.0742,1804.8,1804.7,1.10786]
[1745781807955,5.9664,1804.8,1804.7,1.10786]
[1745781808450,7.0742,1804.8,1804.7,1.10786]
[1745781808854,5.9664,1804.8,1804.7,1.10786]
[1745781810048,7.0742,1804.8,1804.7,1.10786]
[1745781810252,5.9664,1804.8,1804.7,1.10786]
[1745781810953,7.0742,1804.8,1804.7,1.10786]
[1745781812662,5.9664,1804.8,1804.7,1.10786]
[1745781813854,5.9664,1804.8,1804.7,1.38486]
[1745781814249,5.9664,1804.8,1804.7,5.10686]
[1745781815258,5.9664,1804.8,1804.7,1.38486]
[1745781816951,7.0742,1804.8,1804.7,1.38486]
[1745781819066,7.0742,1804.8,1804.7,0.277]
[1745781819269,13.73597,1804.8,1804.4,3.2078]
[1745781819465,1.10807,1804.4,1804.3,1.10806]
[1745781820655,1.5676,1804.4,1804.3,1.10806]
[1745781823468,2.67564,1804.4,1804.3,1.10806]
[1745781823662,1.5676,1804.4,1804.3,1.10806]
[1745781823862,2.67564,1804.4,1804.3,1.10806]
[1745781824367,1.5676,1804.4,1804.3,1.10806]
[1745781825171,1.5676,1804.4,1804.3,4.83006]
[1745781827175,1.5676,1804.4,1804.3,1.10806]
[1745781831373,2.67564,1804.4,1804.3,1.10806]
[1745781831775,3.50824,1804.4,1804.3,1.10806]
[1745781833177,1.1081,1804.3,1804.2,4.31591]
[1745781833377,2.7339,1804.3,1804.2,4.31591]
[1745781834178,2.7339,1804.3,1804.2,8.03791]
[1745781834475,1.6258,1804.3,1804.2,8.03791]
[1745781835079,2.7339,1804.3,1804.2,8.03791]
[1745781835578,1.6258,1804.3,1804.2,8.03791]
[1745781836278,2.7339,1804.3,1804.2,8.03791]
[1745781836679,1.6258,1804.3,1804.2,4.83011]
[1745781839988,2.7339,1804.3,1804.2,4.83011]
[1745781842181,1.6258,1804.3,1804.2,4.83011]
[1745781844482,1.6258,1804.3,1804.2,6.45761]
[1745781844982,2.7339,1804.3,1804.2,6.45761]
[1745781846488,2.7339,1804.3,1804.2,4.83011]
[1745781847383,1.6258,1804.3,1804.2,4.83011]
[1745781847789,2.7339,1804.3,1804.2,4.83011]
[1745781849576,1.6258,1804.3,1804.2,4.83011]
[1745781849777,1.6258,1804.3,1804.2,6.49951]
[1745781851592,2.7339,1804.3,1804.2,6.49951]
[1745781851890,1.6258,1804.3,1804.2,6.49951]
[1745781854796,2.7339,1804.3,1804.2,6.49951]
[1745781856481,1.6258,1804.3,1804.2,6.49951]
[1745781856687,2.7339,1804.3,1804.2,6.49951]
[1745781857096,1.6258,1804.3,1804.2,6.49951]
[1745781858798,2.7339,1804.3,1804.2,6.49951]
[1745781859396,1.6258,1804.3,1804.2,6.49951]
[1745781859598,2.7339,1804.3,1804.2,6.49951]
[1745781860692,3.2078,1804.6,1804.5,1.10798]
[1745781860901,5.1656,1804.8,1804.7,1.10786]
[1745781861195,5.1656,1804.8,1804.7,4.82986]
[1745781861898,5.1656,1804.8,1804.7,6.41596]
[1745781862101,6.2734,1804.8,1804.7,6.41596]
[1745781862396,5.1656,1804.8,1804.7,2.69396]
[1745781864097,5.1656,1804.8,1804.7,6.41596]
[1745781865100,5.1656,1804.8,1804.7,2.69396]
[1745781865404,6.2734,1804.8,1804.7,2.69396]
[1745781865593,6.2734,1804.8,1804.7,1.10786]
[1745781866893,1.10786,1804.7,1804.6,3.06167]
[1745781867096,3.63006,1804.7,1804.6,1.38487]
[1745781867303,7.62416,1804.7,1804.6,0.277]
[1745781868202,11.34616,1804.7,1804.6,0.277]
[1745781871500,1.10798,1804.5,1804.4,1.10799]
[1745781871998,1.10804,1804.4,1804.3,0.8667]
[1745781872200,1.10816,1804.2,1804.1,3.2078]
[1745781872400,4.62916,1804.2,1804.1,3.2078]
[1745781873103,4.62916,1804.2,1804.1,4.31603]
[1745781873290,6.20166,1804.2,1804.1,4.31603]
[1745781873494,5.0935,1804.2,1804.1,4.31603]
[1745781874605,6.20166,1804.2,1804.1,4.31603]
[1745781874901,3.521,1804.2,1804.1,4.31603]
[1745781875103,3.521,1804.2,1804.1,5.89473]
[1745781875704,4.62916,1804.2,1804.1,5.89473]
[1745781875899,6.30546,1804.2,1804.1,5.89473]
[1745781878107,6.30546,1804.2,1804.1,2.68693]
[1745781879702,1.10823,1804.1,1804.0,5.63704]
[1745781879906,3.61003,1804.1,1804.0,5.63704]
[1745781881105,3.61003,1804.1,1804.0,7.31134]
[1745781882011,2.77493,1804.1,1804.0,7.31134]
[1745781891012,2.77493,1804.1,1804.0,5.63704]
[1745781892415,1.6667,1804.1,1804.0,5.63704]
[1745781892716,3.521,1804.2,1804.1,1.10823]
[1745781892909,3.521,1804.2,1804.1,2.69493]
[1745781894308,3.2078,1804.4,1804.3,1.1081]
[1745781894517,6.7288,1804.4,1804.3,1.1081]
[1745781895005,6.7288,1804.4,1804.3,3.553]
[1745781895206,7.83684,1804.4,1804.3,3.553]
[1745781895409,6.7288,1804.4,1804.3,3.553]
[1745781899016,5.133,1804.4,1804.3,3.553]
[1745781899512,6.24104,1804.4,1804.3,3.553]
[1745781899817,5.133,1804.4,1804.3,3.553]
[1745781900418,6.24104,1804.4,1804.3,3.553]
[1745781900718,5.133,1804.4,1804.3,3.553]
[1745781902129,5.133,1804.4,1804.3,7.275]
[1745781903327,1.612,1804.4,1804.3,7.275]
[1745781903625,8.63881,1804.7,1804.6,1.10792]
[1745781904128,4.0099,1804.7,1804.6,1.10792]
[1745781904325,3.2078,1804.7,1804.6,1.10792]
[1745781904523,3.2078,1804.7,1804.6,1.89812]
[1745781904718,3.2078,1804.7,1804.6,3.55792]
[1745781906325,4.8357,1804.7,1804.6,3.55792]
[1745781906523,5.6995,1804.7,1804.6,3.55792]
[1745781906724,1.6279,1804.7,1804.6,3.55792]
[1745781907428,3.521,1804.8,1804.7,1.10786]
[1745781907628,3.521,1804.8,1804.7,2.79266]
[1745781908430,3.521,1804.8,1804.7,6.51466]
[1745781909428,3.2078,1805.0,1804.9,1.10774]
[1745781910229,3.2078,1805.0,1804.9,3.64274]
[1745781911931,4.8371,1805.0,1804.9,3.64274]
[1745781912330,4.8371,1805.0,1804.9,7.36474]
[1745781913230,4.8371,1805.0,1804.9,3.64274]
[1745781915433,1.6293,1805.0,1804.9,3.64274]
[1745781916135,1.6293,1805.0,1804.9,7.36474]
[1745781917234,1.6293,1805.0,1804.9,3.64274]
[1745781918239,1.6293,1805.0,1804.9,7.36474]
[1745781920238,1.6293,1805.0,1804.9,3.64274]
[1745781921125,1.6293,1805.0,1804.9,7.36474]
[1745781921327,6.7278,1805.3,1805.0,1.10767]
[1745781921537,7.83529,1805.3,1805.2,1.10755]
[1745781922237,6.7278,1805.3,1805.2,1.10755]
[1745781922437,7.83529,1805.3,1805.2,1.10755]
[1745781922640,10.27059,1805.3,1805.2,1.10755]
[1745781924644,10.27059,1805.3,1805.2,1.10290833]
[1745781924843,9.1631,1805.3,1805.2,1.10290833]
[1745781925043,10.27059,1805.3,1805.2,1.10290833]
[1745781925343,13.99259,1805.3,1805.2,1.10290833]
[1745781926244,10.27059,1805.3,1805.2,1.10290833]
[1745781927845,1.10759,1805.2,1805.1,1.10757]
[1745781928147,2.74489,1805.2,1805.1,1.10757]
[1745781928343,1.6373,1805.2,1805.1,1.10757]
[1745781928541,2.74485,1805.2,1805.1,1.10757]
[1745781929241,6.46685,1805.2,1805.1,1.10757]
[1745781930244,2.74485,1805.2,1805.1,1.10757]
[1745781934149,6.46685,1805.2,1805.1,1.10757]
[1745781936249,2.74485,1805.2,1805.1,1.10757]
[1745781938945,1.6373,1805.2,1805.1,1.10757]
[1745781939349,0.8581,1805.3,1805.1,3.2078]
[1745781939654,5.9975,1805.4,1805.3,1.10749]
[1745781940145,5.9975,1805.4,1805.3,2.72499]
[1745781940346,1.6075,1805.4,1805.3,2.72499]
[1745781941146,3.2078,1805.8,1805.4,2.76845]
[1745781941453,3.2078,1805.8,1805.5,0.7977]
[1745781941647,2.4154,1805.7,1805.6,1.10731]
[1745781942450,2.4154,1805.7,1805.6,2.73641]
[1745781949456,1.5983,1805.7,1805.6,2.73641]
[1745781960757,1.5983,1805.7,1805.6,1.10731]
[1745781965558,2.70554,1805.7,1805.6,1.10731]
[1745781966269,5.3203,1805.7,1805.6,1.10731]
[1745781967065,6.42754,1805.7,1805.6,1.10731]
[1745781968168,5.3203,1805.7,1805.6,1.10731]
[1745781970072,6.42754,1805.7,1805.6,1.10731]
[1745781971073,5.3203,1805.7,1805.6,1.10731]
[1745781971573,8.5281,1805.7,1805.6,1.10731]
[1745781974066,5.3203,1805.7,1805.6,1.10731]
[1745781977174,1.5983,1805.7,1805.6,1.10731]
[1745781977375,1.5983,1805.7,1805.6,2.78121]
[1745781980182,5.3203,1805.7,1805.6,2.78121]
[1745781981291,1.5983,1805.7,1805.6,2.78121]
[1745781985383,4.3305,1805.8,1805.7,1.10724]
[1745781985585,4.3305,1805.8,1805.7,2.72664]
[1745781986090,6.0268,1805.8,1805.7,2.72664]
[1745781986494,3.519,1805.8,1805.7,2.72664]
[1745781993891,3.519,1805.8,1805.7,5.93444]
[1745782001199,3.519,1805.8,1805.7,2.72664]
[1745782008305,3.519,1805.8,1805.7,5.93444]
[1745782010709,1.7082,1805.9,1805.8,1.10718]
[1745782011006,1.7082,1805.9,1805.8,1.89198]
[1745782012413,1.7082,1805.9,1805.8,3.47338]
[1745782012906,6.7248,1806.1,1806.0,1.10706]
[1745782013108,3.517,1806.1,1806.0,1.10706]
[1745782013508,3.517,1806.1,1806.0,1.89186]
[1745782015317,3.517,1806.1,1806.0,3.56136]
[1745782016409,4.3324,1806.1,1806.0,1.10706]
[1745782018613,6.0447,1806.1,1806.0,1.10706]
[1745782019314,6.0447,1806.1,1806.0,1.93616]
[1745782020307,6.0447,1806.1,1806.0,1.10706]
[1745782021217,9.7667,1806.1,1806.0,1.10706]
[1745782021406,9.7667,1806.1,1805.9,3.2078]
[1745782021613,1.10718,1805.9,1805.7,1.10721]
[1745782021919,2.4733,1805.8,1805.7,1.10721]
[1745782022110,6.1953,1805.8,1805.7,1.10721]
[1745782023118,2.4733,1805.8,1805.7,1.10721]
[1745782023415,2.4733,1805.8,1805.7,3.57651]
[1745782024417,2.4733,1805.8,1805.7,1.92551]
[1745782024616,2.4733,1805.8,1805.7,1.10721]
[1745782027619,1.6364,1805.8,1805.7,6.83951]
[1745782027817,0.8127,1806.0,1805.9,1.10712]
[1745782028021,1.6766,1806.0,1805.9,1.10712]
[1745782028621,1.6766,1806.0,1805.9,2.75802]
[1745782033026,1.6766,1806.0,1805.9,5.96582]
[1745782034527,3.517,1806.1,1806.0,1.10706]
[1745782034727,3.517,1806.1,1806.0,2.83376]
[1745782036226,4.3672,1806.1,1806.0,2.83376]
[1745782037924,4.3672,1806.1,1806.0,1.10706]
[1745782041930,4.3672,1806.1,1806.0,2.71896]
[1745782048537,4.3672,1806.1,1806.0,1.10706]
[1745782051736,4.3672,1806.1,1806.0,2.69666]
[1745782052937,4.3672,1806.1,1806.0,1.10706]
[1745782058733,1.6792,1806.2,1806.1,1.107]
[1745782059432,1.6792,1806.2,1806.1,1.9521]
[1745782059739,2.477,1806.2,1806.1,1.9521]
[1745782059938,2.477,1806.2,1806.1,1.107]
[1745782061339,3.58394,1806.2,1806.1,1.107]
[1745782061641,2.477,1806.2,1806.1,1.107]
[1745782062142,6.199,1806.2,1806.1,1.107]
[1745782062928,6.199,1806.2,1805.9,4.889]
[1745782063133,2.82584,1806.1,1806.0,1.10706]
[1745782063433,2.82584,1806.1,1805.7,5.97591]
[1745782063642,3.3719,1806.0,1805.9,1.10709]
[1745782064034,7.0939,1806.0,1805.9,1.10709]
[1745782069241,3.3719,1806.0,1805.9,1.10709]
[1745782070136,1.7188,1806.0,1805.9,1.10709]
[1745782070337,1.7188,1806.0,1805.9,1.94319]
[1745782073041,1.7188,1806.0,1805.9,3.65719]
[1745782084751,4.3524,1806.3,1806.2,1.10694]
[1745782085244,8.0744,1806.3,1806.2,1.10694]
[1745782085845,10.81888,1806.3,1806.2,1.10694]
[1745782086045,9.712,1806.3,1806.2,1.10694]
[1745782086954,10.81888,1806.3,1806.2,1.10694]
[1745782087249,9.712,1806.3,1806.2,1.10694]
[1745782090557,10.81888,1806.3,1806.2,1.10694]
[1745782099066,7.09688,1806.3,1806.2,1.10694]
[1745782100168,10.81888,1806.3,1806.2,1.10694]
[1745782102171,1.10694,1806.2,1806.1,1.10695]
[1745782102471,2.495,1806.2,1805.9,6.13138]
[1745782102664,0.7913,1806.1,1806.0,1.10706]
[1745782102864,2.5233,1806.1,1806.0,1.10706]
[1745782104974,1.94114,1806.2,1805.9,6.13138]
[1745782104975,1.10694,1806.2,1806.1,1.107]
[1745782105272,7.35224,1806.2,1806.1,1.107]
[1745782106271,6.2453,1806.2,1806.1,1.107]
[1745782108268,6.7238,1806.4,1806.3,1.10688]
[1745782108476,8.3503,1806.4,1806.3,1.10688]
[1745782108976,9.45712,1806.4,1806.3,1.10688]
[1745782109179,13.17912,1806.4,1806.3,1.10688]
[1745782110277,9.97132,1806.4,1806.3,1.10688]
[1745782110777,10.76982,1806.4,1806.3,1.10688]
[1745782117285,7.04782,1806.4,1806.3,1.10688]
[1745782118278,10.76982,1806.4,1806.3,1.10688]
[1745782119586,1.10688,1806.3,1806.2,3.2602]
[1745782119785,1.61,1806.3,1806.2,4.3671]
[1745782119984,9.14337,1806.4,1806.3,1.10688]
[1745782120285,10.75337,1806.4,1806.3,2.72148]
[1745782122288,13.96117,1806.4,1806.3,2.72148]
[1745782123187,10.23917,1806.4,1806.3,2.72148]
[1745782123494,9.44067,1806.4,1806.3,2.72148]
[1745782123987,8.3338,1806.4,1806.3,2.72148]
[1745782125085,12.0558,1806.4,1806.3,2.72148]
[1745782125678,8.848,1806.4,1806.3,2.72148]
[1745782126787,7.238,1806.4,1806.3,2.72148]
[1745782127180,3.516,1806.4,1806.3,2.72148]
[1745782129393,3.516,1806.4,1806.3,1.10688]
[1745782129394,4.62282,1806.4,1806.3,1.10688]
[1745782129594,7.04396,1806.4,1806.3,1.10688]
[1745782130088,10.76596,1806.4,1806.3,1.10688]
[1745782132998,9.6591,1806.4,1806.3,1.10688]
[1745782134500,10.76592,1806.4,1806.3,1.10688]
[1745782136592,9.6591,1806.4,1806.3,1.10688]
[1745782137303,10.76592,1806.4,1806.3,1.10688]
[1745782137488,9.6591,1806.4,1806.3,1.10688]
[1745782137798,10.76592,1806.4,1806.3,1.10688]
[1745782138000,9.6591,1806.4,1806.3,1.10688]
[1745782138700,10.76592,1806.4,1806.3,1.10688]
[1745782138889,9.6591,1806.4,1806.3,1.10688]
[1745782140203,10.76592,1806.4,1806.3,1.10688]
[1745782140503,9.6591,1806.4,1806.3,1.10688]
[1745782143605,10.76592,1806.4,1806.3,1.10688]
[1745782143803,9.6591,1806.4,1806.3,1.10688]
[1745782145607,1.10688,1806.3,1806.2,1.96274]
[1745782145800,4.9284,1806.3,1806.0,1.10706]
[1745782146005,0.8437,1806.2,1805.7,8.86446]
[1745782146208,3.515,1806.1,1806.0,1.10701]
[1745782146605,5.2356,1806.1,1806.0,1.10701]
[1745782147207,8.9576,1806.1,1806.0,1.10701]
[1745782149108,5.2356,1806.1,1806.0,1.10701]
[1745782150111,8.9576,1806.1,1806.0,1.10701]
[1745782151013,10.0646,1806.1,1806.0,1.10701]
[1745782151312,6.3426,1806.1,1806.0,1.10701]
[1745782154215,10.0646,1806.1,1806.0,1.10701]
[1745782156314,6.3426,1806.1,1806.0,1.10701]
[1745782160115,10.0646,1806.1,1806.0,1.10701]
[1745782161218,6.3426,1806.1,1806.0,1.10701]
[1745782162313,6.34264,1806.1,1806.0,1.10706]
[1745782165119,10.06464,1806.1,1806.0,1.10706]
[1745782167319,6.34264,1806.1,1806.0,1.10706]
[1745782168121,10.06464,1806.1,1806.0,1.10706]
[1745782171229,10.06464,1806.1,1806.0,1.96436]
[1745782175819,10.06464,1806.1,1806.0,0.8573]
[1745782176120,10.06464,1806.1,1806.0,1.96436]
[1745782176624,8.9576,1806.1,1806.0,1.96436]
[1745782178022,10.0646,1806.1,1806.0,1.96436]
[1745782200437,10.0646,1806.1,1806.0,0.8573]
[1745782202039,10.0646,1806.1,1806.0,1.96436]
[1745782203934,10.0646,1806.1,1806.0,0.8573]
[1745782204537,10.0646,1806.1,1806.0,1.96436]
[1745782204737,1.10706,1806.0,1805.9,0.8401]
[1745782205030,7.04956,1806.0,1805.9,0.8401]
[1745782206045,7.04956,1806.0,1805.9,1.9472]